fUST/lending_fUST_20250519
["ID","MTS","AMOUNT","RATE_DAILY","PERIOD"]
[361644962,1747661431818,-444.54243294,0.000189,2]
[361644964,1747661431828,-182.3470098,0.00020131,2]
[361644966,1747661431838,-172.566045,0.00020187,2]
[361644968,1747661431847,-160.0,0.0002085,2]
[361644970,1747661431857,-200.62835794,0.000209,4]
[361644972,1747661431866,-200.62835787,0.00021048,4]
[361644974,1747661431875,-428.3536188,0.00021144,2]
[361644976,1747661431885,-270.446956,0.00021181,2]
[361644978,1747661431894,-200.62835787,0.00021196,4]
[361644980,1747661431904,-200.62835787,0.00021344,5]
[361644982,1747661431913,-1200.0,0.00021491,2]
[361644984,1747661431922,-300.0,0.00021492,2]
[361644986,1747661431937,-300.0,0.00021492,2]
[361644989,1747661431946,-300.0,0.00021492,2]
[361644991,1747661431956,-200.62835787,0.00021493,5]
[361644993,1747661431965,-47884.3734089,0.00021493,2]
[361644999,1747661432023,-1185.63375423,0.00021493,2]
[361645006,1747661432397,-929.99283687,0.00021493,2]
[361645008,1747661432407,-200.62835787,0.00021641,5]
[361645010,1747661432416,-200.62835787,0.00021789,6]
[361645012,1747661432426,-200.62835787,0.00021937,6]
[361645014,1747661432436,-170.0,0.00022,2]
[361645016,1747661432446,-200.62835787,0.00022085,6]
[361645018,1747661432456,-555.2986708,0.00022116,2]
[361645020,1747661432465,-200.62835787,0.00022233,6]
[361645022,1747661432475,-349.2695165,0.00022283,2]
[361645024,1747661432486,-219.524935,0.00022293,2]
[361645026,1747661432496,-500.0,0.00022341,2]
[361645028,1747661432506,-500.0,0.00022341,2]
[361645029,1747661432515,-503.96182052,0.00022341,2]
[361645032,1747661432525,-500.0,0.00022341,2]
[361645034,1747661432534,-500.0,0.00022341,2]
[361645036,1747661432543,-500.0,0.00022341,2]
[361645038,1747661432553,-500.0,0.00022341,2]
[361645040,1747661432562,-500.0,0.00022341,2]
[361645042,1747661432572,-500.0,0.00022341,2]
[361645044,1747661432581,-500.0,0.00022343,2]
[361645046,1747661432590,-200.62835787,0.00022381,7]
[361645048,1747661432600,-200.62835787,0.0002253,7]
[361645049,1747661432609,-200.62835787,0.00022678,7]
[361645052,1747661432618,-200.62835787,0.00022826,8]
[361645054,1747661432628,-200.62835787,0.00022974,8]
[361645055,1747661432637,-171.0,0.00023014,7]
[361645058,1747661432646,-200.62835787,0.00023122,8]
[361645060,1747661432655,-200.62835787,0.0002327,8]
[361645062,1747661432665,-420.0,0.00023366,2]
[361645064,1747661432675,-200.62835787,0.00023419,9]
[361645066,1747661432685,-506.45307935,0.000235,30]
[361645068,1747661432694,-200.62835787,0.00023567,9]
[361645069,1747661432704,-200.62835787,0.00023715,9]
[361645071,1747661432713,-560.63420508,0.00023735,2]
[361645072,1747661432722,-1246.96370022,0.00023735,2]
[361645073,1747661432732,-560.63420505,0.00023769,2]
[361645074,1747661432741,-560.63420505,0.00023804,2]
[361645075,1747661432751,-500.0,0.00023834,2]
[361645076,1747661432761,-500.0,0.00023834,2]
[361645078,1747661432770,-500.0,0.00023834,2]
[361645079,1747661432780,-190.62615994,0.00023834,2]
[361645080,1747661432790,-500.0,0.00023834,2]
[361645082,1747661432800,-500.0,0.00023834,2]
[361645083,1747661432809,-500.0,0.00023834,2]
[361645084,1747661432819,-598.46139183,0.00023834,2]
[361645085,1747661432828,-500.0,0.00023834,2]
[361645086,1747661432838,-500.0,0.00023834,2]
[361645087,1747661432848,-337.40153118,0.00023834,2]
[361645088,1747661432857,-500.0,0.00023834,2]
[361645089,1747661432867,-2209.68838353,0.00023835,3]
[361645090,1747661432877,-1251.56659772,0.00023835,2]
[361645091,1747661432887,-430.0,0.00023835,4]
[361645092,1747661432897,-430.0,0.00023835,4]
[361645093,1747661432906,-430.0,0.00023835,4]
[361645094,1747661432916,-450.0,0.00023835,4]
[361645095,1747661432926,-430.0,0.00023835,4]
[361645096,1747661432940,-400.0,0.00023835,4]
[361645097,1747661432953,-573.9390223,0.00023835,4]
[361645098,1747661432962,-400.0,0.00023835,4]
[361645099,1747661432972,-450.0,0.00023835,4]
[361645100,1747661432982,-450.0,0.00023835,4]
[361645101,1747661432992,-450.0,0.00023835,4]
[361645102,1747661433001,-450.0,0.00023835,4]
[361645103,1747661433013,-450.0,0.00023835,4]
[361645104,1747661433023,-430.0,0.00023835,4]
[361645105,1747661433033,-370.0,0.00023835,4]
[361645106,1747661433042,-450.0,0.00023835,4]
[361645107,1747661433051,-430.0,0.00023835,4]
[361645108,1747661433061,-407.2847538,0.00023835,4]
[361645109,1747661433071,-450.0,0.00023835,4]
[361645110,1747661433081,-370.0,0.00023835,4]
[361645111,1747661433091,-430.0,0.00023835,4]
[361645112,1747661433100,-345.80044518,0.00023835,4]
[361645113,1747661433110,-450.0,0.00023835,4]
[361645114,1747661433120,-430.0,0.00023835,4]
[361645115,1747661433130,-405.29281987,0.00023835,4]
[361645116,1747661433140,-413.66794737,0.00023835,4]
[361645117,1747661433150,-370.0,0.00023835,4]
[361645118,1747661433160,-450.0,0.00023835,4]
[361645119,1747661433170,-370.0,0.00023835,4]
[361645120,1747661433180,-450.0,0.00023835,2]
[361645121,1747661433190,-450.0,0.00023835,4]
[361645122,1747661433201,-450.0,0.00023835,4]
[361645123,1747661433211,-450.0,0.00023835,4]
[361645124,1747661433220,-450.0,0.00023835,4]
[361645125,1747661433230,-450.0,0.00023835,4]
[361645126,1747661433242,-450.0,0.00023835,4]
[361645127,1747661433251,-450.0,0.00023835,4]
[361645128,1747661433260,-450.0,0.00023835,4]
[361645129,1747661433270,-450.0,0.00023835,4]
[361645130,1747661433280,-450.0,0.00023835,4]
[361645131,1747661433290,-293.20329474,0.00023835,4]
[361645132,1747661433299,-400.84757874,0.00023835,4]
[361645133,1747661433309,-450.0,0.00023835,4]
[361645134,1747661433319,-430.0,0.00023835,4]
[361645135,1747661433329,-450.0,0.00023835,4]
[361645136,1747661433338,-450.0,0.00023835,4]
[361645137,1747661433348,-450.0,0.00023835,4]
[361645138,1747661433357,-450.0,0.00023835,4]
[361645139,1747661433366,-450.0,0.00023835,4]
[361645140,1747661433376,-450.0,0.00023835,4]
[361645141,1747661433385,-450.0,0.00023835,4]
[361645142,1747661433395,-450.0,0.00023835,4]
[361645143,1747661433404,-450.0,0.00023835,4]
[361645144,1747661433414,-450.0,0.00023835,4]
[361645145,1747661433424,-450.0,0.00023835,4]
[361645146,1747661433433,-450.0,0.00023835,4]
[361645147,1747661433443,-450.0,0.00023835,4]
[361645148,1747661433452,-430.0,0.00023835,4]
[361645149,1747661433461,-450.0,0.00023835,4]
[361645150,1747661433471,-450.0,0.00023835,4]
[361645151,1747661433480,-430.0,0.00023835,4]
[361645152,1747661433491,-450.0,0.00023835,4]
[361645153,1747661433500,-450.0,0.00023835,4]
[361645154,1747661433510,-450.0,0.00023835,4]
[361645155,1747661433521,-450.0,0.00023835,4]
[361645156,1747661433532,-430.0,0.00023835,4]
[361645157,1747661433541,-450.0,0.00023835,4]
[361645158,1747661433552,-450.0,0.00023835,4]
[361645159,1747661433562,-450.0,0.00023835,4]
[361645160,1747661433571,-257.30267594,0.00023835,4]
[361645161,1747661433581,-430.0,0.00023835,4]
[361645162,1747661433590,-430.0,0.00023835,4]
[361645163,1747661433600,-402.09790933,0.00023835,4]
[361645164,1747661433610,-450.0,0.00023835,4]
[361645165,1747661433619,-450.0,0.00023835,4]
[361645166,1747661433628,-560.05369715,0.00023835,4]
[361645167,1747661433638,-450.0,0.00023835,4]
[361645168,1747661433648,-450.0,0.00023835,4]
[361645169,1747661433658,-430.0,0.00023835,4]
[361645170,1747661433667,-450.0,0.00023835,4]
[361645171,1747661433676,-450.0,0.00023835,4]
[361645172,1747661433686,-450.0,0.00023835,4]
[361645173,1747661433696,-450.0,0.00023835,4]
[361645174,1747661433705,-450.0,0.00023835,4]
[361645175,1747661433715,-430.0,0.00023835,4]
[361645176,1747661433724,-430.0,0.00023835,4]
[361645177,1747661433734,-430.0,0.00023835,4]
[361645178,1747661433744,-450.0,0.00023835,4]
[361645179,1747661433754,-430.0,0.00023835,4]
[361645180,1747661433765,-450.0,0.00023835,4]
[361645181,1747661433774,-450.0,0.00023835,4]
[361645182,1747661433784,-450.0,0.00023835,4]
[361645183,1747661433793,-450.0,0.00023835,4]
[361645184,1747661433803,-250.00000001,0.00023835,4]
[361645185,1747661433955,-401.12213207,0.00023835,4]
[361645186,1747661433965,-450.0,0.00023835,4]
[361645187,1747661433978,-450.0,0.00023835,4]
[361645188,1747661433988,-450.0,0.00023835,4]
[361645189,1747661433998,-420.34127567,0.00023835,4]
[361645190,1747661434008,-400.92719641,0.00023835,4]
[361645191,1747661434018,-450.0,0.00023835,4]
[361645192,1747661434029,-430.0,0.00023835,4]
[361645193,1747661434038,-430.0,0.00023835,4]
[361645194,1747661434049,-430.0,0.00023835,4]
[361645195,1747661434058,-430.0,0.00023835,4]
[361645196,1747661434068,-400.0,0.00023835,4]
[361645197,1747661434078,-430.0,0.00023835,4]
[361645198,1747661434090,-430.0,0.00023835,4]
[361645199,1747661434099,-401.10725529,0.00023835,4]
[361645200,1747661434109,-430.0,0.00023835,4]
[361645201,1747661434118,-450.0,0.00023835,4]
[361645202,1747661434129,-450.0,0.00023835,4]
[361645203,1747661434139,-450.0,0.00023835,4]
[361645204,1747661434148,-450.0,0.00023835,4]
[361645205,1747661434158,-403.36212656,0.00023835,4]
[361645206,1747661434168,-450.0,0.00023835,4]
[361645207,1747661434177,-450.0,0.00023835,4]
[361645208,1747661434187,-450.0,0.00023835,4]
[361645209,1747661434196,-450.0,0.00023835,4]
[361645210,1747661434206,-450.0,0.00023835,4]
[361645211,1747661434215,-450.0,0.00023835,4]
[361645212,1747661434225,-402.00312491,0.00023835,4]
[361645213,1747661434234,-430.0,0.00023835,4]
[361645214,1747661434244,-430.0,0.00023835,4]
[361645215,1747661434254,-500.0,0.00023835,2]
[361645216,1747661434263,-430.0,0.00023835,4]
[361645217,1747661434272,-450.0,0.00023835,4]
[361645218,1747661434281,-450.0,0.00023835,4]
[361645219,1747661434290,-450.0,0.00023835,4]
[361645220,1747661434299,-450.0,0.00023835,4]
[361645221,1747661434309,-450.0,0.00023835,4]
[361645222,1747661434317,-400.0,0.00023835,4]
[361645223,1747661434326,-450.0,0.00023835,4]
[361645224,1747661434335,-450.0,0.00023835,4]
[361645225,1747661434344,-450.0,0.00023835,4]
[361645226,1747661434353,-400.0,0.00023835,4]
[361645227,1747661434363,-491.17,0.00023835,4]
[361645228,1747661434373,-401.3471491,0.00023835,4]
[361645229,1747661434383,-450.0,0.00023835,4]
[361645230,1747661434393,-450.0,0.00023835,4]
[361645231,1747661434402,-450.0,0.00023835,4]
[361645232,1747661434411,-450.0,0.00023835,4]
[361645233,1747661434421,-430.0,0.00023835,4]
[361645234,1747661434430,-430.0,0.00023835,4]
[361645235,1747661434440,-450.0,0.00023835,4]
[361645236,1747661434449,-430.0,0.00023835,4]
[361645237,1747661434459,-450.0,0.00023835,4]
[361645238,1747661434470,-430.0,0.00023835,4]
[361645239,1747661434479,-450.0,0.00023835,4]
[361645240,1747661434489,-450.0,0.00023835,4]
[361645241,1747661434499,-450.0,0.00023835,4]
[361645242,1747661434509,-450.0,0.00023835,4]
[361645243,1747661434518,-430.0,0.00023835,4]
[361645244,1747661434528,-407.32592892,0.00023835,4]
[361645245,1747661434538,-430.0,0.00023835,4]
[361645246,1747661434547,-430.0,0.00023835,4]
[361645247,1747661434557,-450.0,0.00023835,4]
[361645248,1747661434566,-227.63614256,0.00023835,4]
[361645249,1747661434575,-310.0,0.00023835,4]
[361645250,1747661434585,-401.4987925,0.00023835,4]
[361645251,1747661434596,-430.0,0.00023835,4]
[361645252,1747661434606,-430.0,0.00023835,4]
[361645253,1747661434615,-450.0,0.00023835,4]
[361645254,1747661434625,-402.03981809,0.00023835,4]
[361645255,1747661434634,-430.0,0.00023835,4]
[361645256,1747661434643,-430.0,0.00023835,4]
[361645257,1747661434653,-450.0,0.00023835,4]
[361645258,1747661434663,-430.0,0.00023835,4]
[361645259,1747661434673,-450.0,0.00023835,4]
[361645260,1747661434683,-430.0,0.00023835,4]
[361645261,1747661434693,-430.0,0.00023835,4]
[361645262,1747661434703,-450.0,0.00023835,4]
[361645263,1747661434713,-450.0,0.00023835,4]
[361645264,1747661434723,-400.91451024,0.00023835,4]
[361645265,1747661434733,-430.0,0.00023835,4]
[361645266,1747661434743,-430.0,0.00023835,4]
[361645267,1747661434752,-450.0,0.00023835,4]
[361645268,1747661434762,-450.0,0.00023835,4]
[361645269,1747661434772,-450.0,0.00023835,4]
[361645270,1747661434782,-400.53948181,0.00023835,4]
[361645271,1747661434791,-450.0,0.00023835,4]
[361645272,1747661434801,-402.01186613,0.00023835,4]
[361645273,1747661434811,-430.0,0.00023835,4]
[361645274,1747661434821,-450.0,0.00023835,4]
[361645275,1747661434831,-450.0,0.00023835,4]
[361645276,1747661434840,-450.0,0.00023835,4]
[361645277,1747661434850,-430.0,0.00023835,4]
[361645278,1747661434860,-450.0,0.00023835,4]
[361645279,1747661434870,-450.0,0.00023835,4]
[361645280,1747661434880,-450.0,0.00023835,4]
[361645281,1747661434890,-400.76752483,0.00023835,4]
[361645282,1747661434900,-401.57699718,0.00023835,4]
[361645283,1747661434910,-430.0,0.00023835,4]
[361645284,1747661434920,-450.0,0.00023835,4]
[361645285,1747661434932,-430.0,0.00023835,4]
[361645286,1747661434942,-430.0,0.00023835,4]
[361645287,1747661434953,-430.0,0.00023835,4]
[361645288,1747661434963,-558.91,0.00023835,4]
[361645289,1747661434973,-430.0,0.00023835,4]
[361645290,1747661434985,-450.0,0.00023835,4]
[361645291,1747661434995,-204.36059249,0.00023835,4]
[361645292,1747661435005,-388.64,0.00023835,4]
[361645293,1747661435018,-450.0,0.00023835,4]
[361645294,1747661435027,-401.08444501,0.00023835,4]
[361645295,1747661435038,-450.0,0.00023835,4]
[361645296,1747661435048,-450.0,0.00023835,4]
[361645297,1747661435058,-214.01649776,0.00023835,4]
[361645298,1747661435067,-430.0,0.00023835,4]
[361645299,1747661435077,-448.36412873,0.00023835,4]
[361645300,1747661435087,-669.94,0.00023835,4]
[361645301,1747661435097,-402.65010271,0.00023835,4]
[361645302,1747661435107,-430.0,0.00023835,4]
[361645303,1747661435116,-430.0,0.00023835,4]
[361645304,1747661435126,-450.0,0.00023835,4]
[361645305,1747661435136,-509.58259274,0.00023835,4]
[361645306,1747661435145,-500.0,0.00023835,4]
[361645307,1747661435155,-500.0,0.00023835,4]
[361645308,1747661435165,-284.91968723,0.00023835,4]
[361645309,1747661435413,500.0,0.00023953,120]
[361645310,1747661435490,500.0,0.00023953,120]
[361645311,1747661435571,547.27,0.00023953,120]
[361645312,1747661435633,203.1035,0.00027,120]
[361645319,1747661437916,-300.0,0.00021491,2]
[361645320,1747661437928,-165.08031277,0.00023835,4]
[361645321,1747661437940,-500.0,0.00023835,4]
[361645322,1747661437951,-500.0,0.00023835,4]
[361645323,1747661437961,-38.30254465,0.00023835,4]
[361645610,1747661443055,-461.69745535,0.00023835,4]
[361645612,1747661443065,-500.0,0.00023835,4]
[361645614,1747661443074,-450.0,0.00023835,4]
[361645616,1747661443083,-500.0,0.00023835,4]
[361645618,1747661443092,-500.0,0.00023835,4]
[361645620,1747661443102,-300.0,0.00023835,4]
[361645622,1747661443112,-500.0,0.00023835,4]
[361645624,1747661443121,-500.0,0.00023835,4]
[361645626,1747661443131,-450.0,0.00023835,4]
[361645628,1747661443141,-500.0,0.00023835,4]
[361645630,1747661443150,-500.0,0.00023835,4]
[361645632,1747661443159,-430.0,0.00023835,4]
[361645635,1747661443169,-401.34113592,0.00023835,4]
[361645637,1747661443177,-409.02315553,0.00023835,4]
[361645639,1747661443187,-402.13872998,0.00023835,4]
[361645641,1747661443196,-430.0,0.00023835,4]
[361645643,1747661443205,-401.63775207,0.00023835,4]
[361645645,1747661443214,-430.0,0.00023835,4]
[361645647,1747661443224,-401.28251717,0.00023835,4]
[361645649,1747661443233,-403.93580659,0.00023835,4]
[361645651,1747661443243,-400.60979183,0.00023835,4]
[361645653,1747661443254,-402.08733713,0.00023835,4]
[361645655,1747661443264,-400.92012363,0.00023835,4]
[361645657,1747661443273,-430.0,0.00023835,4]
[361645659,1747661443283,-770.93,0.00023835,4]
[361645662,1747661443293,-400.91268128,0.00023835,4]
[361645664,1747661443302,-450.0,0.00023835,4]
[361645666,1747661443311,-401.70777653,0.00023835,4]
[361645668,1747661443320,-473.01453748,0.00023835,4]
[361645670,1747661443329,-400.0,0.00023835,4]
[361645671,1747661443338,-401.31290122,0.00023835,4]
[361645674,1747661443348,-403.13312777,0.00023835,4]
[361645675,1747661443357,-450.0,0.00023835,4]
[361645678,1747661443366,-430.0,0.00023835,4]
[361645680,1747661443376,-403.44347559,0.00023835,4]
[361645682,1747661443387,-450.0,0.00023835,4]
[361645684,1747661443396,-402.38233488,0.00023835,4]
[361645686,1747661443405,-402.22366325,0.00023835,4]
[361645688,1747661443414,-1009.39646126,0.00023835,2]
[361645690,1747661443423,-504.06427936,0.00023835,4]
[361645692,1747661443432,-401.50317887,0.00023835,4]
[361645694,1747661443441,-450.0,0.00023835,4]
[361645696,1747661443450,-430.0,0.00023835,4]
[361645698,1747661443460,-430.0,0.00023835,4]
[361645699,1747661443469,-430.0,0.00023835,4]
[361645702,1747661443478,-430.0,0.00023835,4]
[361645703,1747661443488,-401.79667671,0.00023835,4]
[361645705,1747661443499,-450.0,0.00023835,4]
[361645707,1747661443507,-400.0,0.00023835,4]
[361645709,1747661443517,-401.23941587,0.00023835,4]
[361645712,1747661443527,-430.0,0.00023835,4]
[361645713,1747661443537,-430.0,0.00023835,4]
[361645716,1747661443547,-401.38747886,0.00023835,4]
[361645718,1747661443556,-430.0,0.00023835,4]
[361645720,1747661443567,-450.0,0.00023835,4]
[361645721,1747661443576,-402.05383914,0.00023835,4]
[361645723,1747661443586,-401.9682729,0.00023835,4]
[361645725,1747661443596,-450.0,0.00023835,4]
[361645727,1747661443605,-430.0,0.00023835,4]
[361645729,1747661443614,-400.43357852,0.00023835,4]
[361645731,1747661443624,-450.0,0.00023835,4]
[361645733,1747661443633,-430.0,0.00023835,4]
[361645735,1747661443642,-400.5503833,0.00023835,4]
[361645737,1747661443653,-430.0,0.00023835,4]
[361645739,1747661443662,-503.87742256,0.00023835,4]
[361645741,1747661443671,-450.0,0.00023835,4]
[361645743,1747661443680,-400.0,0.00023835,4]
[361645745,1747661443689,-430.0,0.00023835,4]
[361645747,1747661443698,-430.0,0.00023835,4]
[361645749,1747661443708,-450.0,0.00023835,4]
[361645751,1747661443717,-430.0,0.00023835,4]
[361645753,1747661443726,-450.0,0.00023835,4]
[361645755,1747661443734,-402.31935392,0.00023835,4]
[361645757,1747661443745,-450.0,0.00023835,4]
[361645759,1747661443755,-402.12188739,0.00023835,4]
[361645761,1747661443764,-405.64847685,0.00023835,4]
[361645763,1747661443773,-401.50733618,0.00023835,4]
[361645765,1747661443782,-430.0,0.00023835,4]
[361645767,1747661443791,-446.28,0.00023835,4]
[361645769,1747661443801,-450.0,0.00023835,2]
[361645771,1747661443810,-430.0,0.00023835,4]
[361645773,1747661443819,-401.31931123,0.00023835,4]
[361645775,1747661443829,-450.0,0.00023835,4]
[361645777,1747661443838,-430.0,0.00023835,4]
[361645779,1747661443847,-365.57899307,0.00023835,4]
[361645781,1747661443856,-450.0,0.00023835,4]
[361645783,1747661443866,-450.0,0.00023835,4]
[361645785,1747661443875,-277.27178343,0.00023835,4]
[361645787,1747661443885,-450.0,0.00023835,4]
[361645789,1747661443894,-430.0,0.00023835,4]
[361645791,1747661443904,-450.0,0.00023835,4]
[361645793,1747661443914,-500.0,0.00023835,4]
[361645795,1747661443923,-450.0,0.00023835,4]
[361645797,1747661443933,-83.05822913,0.00023835,4]
[361645969,1747661445855,-315.3474825,0.00023735,2]
[361645971,1747661445865,-416.94177087,0.00023835,4]
[361645973,1747661445875,-500.0,0.00023835,4]
[361645975,1747661445884,-500.0,0.00023835,4]
[361645977,1747661445894,-500.0,0.00023835,4]
[361645979,1747661445903,-500.0,0.00023835,4]
[361645981,1747661445912,-500.0,0.00023835,4]
[361645983,1747661445921,-400.86206516,0.00023835,4]
[361645984,1747661445932,-485.15136793,0.00023835,4]
[361645987,1747661445955,-430.0,0.00023835,4]
[361645989,1747661445974,-450.0,0.00023835,4]
[361645991,1747661445992,-450.0,0.00023835,4]
[361645993,1747661446003,-450.0,0.00023835,4]
[361645994,1747661446012,-430.0,0.00023835,4]
[361645996,1747661446022,-450.0,0.00023835,4]
[361645999,1747661446032,-450.0,0.00023835,4]
[361646001,1747661446041,-450.0,0.00023835,4]
[361646003,1747661446051,-430.0,0.00023835,4]
[361646005,1747661446061,-450.0,0.00023835,4]
[361646007,1747661446070,-450.0,0.00023835,4]
[361646008,1747661446079,-400.63538985,0.00023835,4]
[361646010,1747661446089,-450.0,0.00023835,4]
[361646012,1747661446098,-450.0,0.00023835,4]
[361646014,1747661446108,-463.22,0.00023835,4]
[361646016,1747661446117,-206.73654446,0.00023835,4]
[361646018,1747661446126,-450.0,0.00023835,4]
[361646020,1747661446135,-450.0,0.00023835,4]
[361646022,1747661446145,-400.62566055,0.00023835,4]
[361646025,1747661446154,-425.08583795,0.00023835,4]
[361646026,1747661446163,-450.0,0.00023835,4]
[361646028,1747661446172,-404.49785513,0.00023835,4]
[361646030,1747661446182,-1789.02,0.00023835,4]
[361646032,1747661446191,-430.0,0.00023835,4]
[361646034,1747661446200,-430.0,0.00023835,4]
[361646036,1747661446209,-430.0,0.00023835,4]
[361646038,1747661446219,-1112.17,0.00023835,4]
[361646041,1747661446228,-400.0,0.00023835,4]
[361646042,1747661446238,-430.0,0.00023835,4]
[361646044,1747661446252,-450.0,0.00023835,4]
[361646047,1747661446261,-402.0455979,0.00023835,4]
[361646048,1747661446271,-430.0,0.00023835,4]
[361646050,1747661446280,-450.0,0.00023835,4]
[361646052,1747661446289,-430.0,0.00023835,2]
[361646054,1747661446298,-450.0,0.00023835,4]
[361646056,1747661446309,-413.74760636,0.00023835,4]
[361646058,1747661446319,-400.0,0.00023835,4]
[361646060,1747661446328,-164.95568042,0.00023835,4]
[361646062,1747661446337,-430.0,0.00023835,4]
[361646064,1747661446348,-430.0,0.00023835,4]
[361646066,1747661446357,-430.0,0.00023835,4]
[361646068,1747661446367,-430.0,0.00023835,4]
[361646070,1747661446377,-671.63,0.00023835,4]
[361646072,1747661446386,-389.50297437,0.00023835,4]
[361646074,1747661446395,-471.81,0.00023835,4]
[361646076,1747661446404,-430.0,0.00023835,4]
[361646078,1747661446413,-450.0,0.00023835,4]
[361646080,1747661446422,-400.95449768,0.00023835,4]
[361646082,1747661446431,-314.47709477,0.00023835,4]
[361646084,1747661446440,-430.0,0.00023835,4]
[361646086,1747661446449,-547.61,0.00023835,4]
[361646088,1747661446458,-400.0,0.00023835,4]
[361646090,1747661446467,-430.0,0.00023835,4]
[361646092,1747661446476,-404.27774871,0.00023835,4]
[361646094,1747661446485,-445.05,0.00023835,4]
[361646096,1747661446497,-430.0,0.00023835,4]
[361646098,1747661446506,-400.88327233,0.00023835,4]
[361646100,1747661446515,-430.0,0.00023835,4]
[361646102,1747661446524,-707.42,0.00023835,4]
[361646104,1747661446534,-430.0,0.00023835,4]
[361646106,1747661446543,-406.04336583,0.00023835,4]
[361646108,1747661446552,-430.0,0.00023835,4]
[361646110,1747661446561,-450.0,0.00023835,4]
[361646112,1747661446570,-430.0,0.00023835,4]
[361646114,1747661446579,-694.29,0.00023835,4]
[361646116,1747661446588,-430.0,0.00023835,4]
[361646118,1747661446597,-430.0,0.00023835,4]
[361646120,1747661446606,-430.0,0.00023835,4]
[361646122,1747661446614,-450.0,0.00023835,4]
[361646124,1747661446623,-430.0,0.00023835,4]
[361646126,1747661446632,-450.0,0.00023835,4]
[361646127,1747661446642,-430.0,0.00023835,4]
[361646130,1747661446651,-400.0,0.00023835,4]
[361646132,1747661446661,-4600.11,0.00023835,4]
[361646133,1747661446670,-287.28,0.00023835,4]
[361646135,1747661446680,-4376.8,0.00023835,4]
[361646137,1747661446690,-562.22968061,0.00023835,4]
[361646139,1747661446699,-402.66735484,0.00023835,4]
[361646141,1747661446709,-430.0,0.00023835,4]
[361646143,1747661446720,-400.78012797,0.00023835,4]
[361646145,1747661446730,-430.0,0.00023835,4]
[361646147,1747661446745,-430.0,0.00023835,4]
[361646150,1747661446759,-430.0,0.00023835,4]
[361646151,1747661446769,-430.0,0.00023835,4]
[361646153,1747661446779,-1270.04,0.00023835,4]
[361646156,1747661446789,-430.0,0.00023835,4]
[361646157,1747661446799,-500.0,0.00023835,4]
[361646160,1747661446809,-500.0,0.00023835,4]
[361646161,1747661446818,-500.0,0.00023835,4]
[361646163,1747661446828,-341.69253611,0.00023835,4]
[361646165,1747661446837,-450.0,0.00023835,4]
[361646167,1747661446847,-500.0,0.00023835,4]
[361646169,1747661446857,-500.0,0.00023835,4]
[361646171,1747661446867,-500.0,0.00023835,4]
[361646174,1747661446879,-500.0,0.00023835,4]
[361646175,1747661446888,-500.0,0.00023835,4]
[361646177,1747661446898,-430.0,0.00023835,4]
[361646180,1747661446908,-500.0,0.00023835,4]
[361646182,1747661446918,-500.0,0.00023835,4]
[361646184,1747661446928,-430.0,0.00023835,4]
[361646186,1747661446938,-500.0,0.00023835,4]
[361646188,1747661446952,-500.0,0.00023835,4]